bitfinex/quotes_BTCUSD_20250808
["timestamp","ask_amount","ask_price","bid_price","bid_amount"]
[1754681137309,0.18890208,116650.0,116640.0,0.0004]
[1754681137617,0.56964355,116650.0,116640.0,0.00239]
[1754681138030,0.56640355,116650.0,116640.0,0.00239]
[1754681138438,0.45645454,116650.0,116640.0,0.00239]
[1754681138570,0.45745454,116650.0,116640.0,0.00339]
[1754681139222,0.45745454,116650.0,116640.0,0.00439]
[1754681140346,0.45144327,116650.0,116640.0,0.00439]
[1754681140546,0.45747109,116650.0,116640.0,0.00439]
[1754681140745,0.54426534,116650.0,116640.0,0.00439]
[1754681140947,0.54750534,116650.0,116640.0,0.00439]
[1754681141111,0.54953534,116650.0,116640.0,0.00439]
[1754681141513,0.54426534,116650.0,116640.0,0.00439]
[1754681142838,0.54426534,116650.0,116640.0,0.00675]
[1754681143090,0.54426534,116650.0,116640.0,0.00439]
[1754681143694,0.54426397,116650.0,116640.0,0.00439]
[1754681144960,0.54750397,116650.0,116640.0,0.00439]
[1754681145160,0.54953397,116650.0,116640.0,0.00439]
[1754681146340,0.54426397,116650.0,116640.0,0.00439]
[1754681148607,0.52588178,116650.0,116640.0,0.00439]
[1754681149487,0.50979992,116650.0,116640.0,0.00439]
[1754681150295,0.50701347,116650.0,116640.0,0.00439]
[1754681151722,0.50897347,116650.0,116640.0,0.00439]
[1754681153155,0.42217922,116650.0,116640.0,0.00439]
[1754681156607,0.41416419,116650.0,116640.0,0.00439]
[1754681156832,0.41416419,116650.0,116640.0,0.0024]
[1754681162993,0.41416419,116650.0,116640.0,0.00437]
[1754681166535,0.41416419,116650.0,116640.0,0.0024]
[1754681166721,0.50095844,116650.0,116640.0,0.0024]
[1754681174023,0.52843462,116650.0,116640.0,0.0024]
[1754681175010,0.52843462,116650.0,116640.0,0.0014]
[1754681175011,0.50095844,116650.0,116640.0,0.0014]
[1754681175447,0.50195844,116650.0,116640.0,0.0014]
[1754681176278,0.50095844,116650.0,116640.0,0.0004]
[1754681176739,0.50195844,116650.0,116640.0,0.0014]
[1754681181978,0.84195844,116650.0,116640.0,0.0014]
[1754681185327,0.85000107,116650.0,116640.0,0.0014]
[1754681190428,0.85,116650.0,116640.0,0.0014]
[1754681191624,0.87747618,116650.0,116640.0,0.0014]
[1754681193664,0.87647618,116650.0,116640.0,0.0004]
[1754681194075,0.87847618,116650.0,116640.0,1e-08]
[1754681194278,0.85702911,116650.0,116640.0,1e-08]
[1754681194518,0.88750529,116650.0,116640.0,1e-08]
[1754681194740,0.92554243,116650.0,116640.0,1e-08]
[1754681202220,0.95054243,116650.0,116640.0,1e-08]
[1754681202832,0.950495,116650.0,116640.0,1e-08]
[1754681206514,0.52891678,116640.0,116630.0,1e-08]
[1754681206726,0.84796032,116640.0,116630.0,1e-08]
[1754681207207,0.85139632,116640.0,116630.0,1e-08]
[1754681207871,0.85339632,116640.0,116630.0,1e-08]
[1754681208078,0.85539632,116640.0,116630.0,1e-08]
[1754681208915,0.85539389,116640.0,116630.0,1e-08]
[1754681209126,0.85539389,116640.0,116630.0,0.00212001]
[1754681211242,0.85539389,116640.0,116630.0,1e-08]
[1754681211474,0.85539389,116640.0,116630.0,0.00208001]
[1754681212145,1.29359389,116640.0,116630.0,0.00208001]
[1754681212359,1.29359389,116640.0,116630.0,1e-08]
[1754681213667,1.29359389,116640.0,116630.0,0.00208001]
[1754681213869,1.15623389,116640.0,116630.0,0.00208001]
[1754681214075,1.28835389,116640.0,116630.0,0.00444001]
[1754681214285,1.28835389,116640.0,116630.0,0.00208001]
[1754681216114,1.29148389,116640.0,116630.0,0.00208001]
[1754681217860,1.29148935,116640.0,116630.0,0.00208001]
[1754681218048,1.29351935,116640.0,116630.0,0.00208001]
[1754681218278,1.16139935,116640.0,116630.0,0.00208001]
[1754681218507,1.49939935,116640.0,116630.0,0.00208001]
[1754681220567,1.36223935,116640.0,116630.0,0.00208001]
[1754681220778,1.49423935,116640.0,116630.0,0.00444001]
[1754681221197,1.36223935,116640.0,116630.0,0.00444001]
[1754681221412,1.49423935,116640.0,116630.0,0.00444001]
[1754681221970,1.49423935,116640.0,116630.0,0.00208001]
[1754681228254,1.36223935,116640.0,116630.0,0.00208001]
[1754681228621,1.49419935,116640.0,116630.0,0.00208001]
[1754681229956,1.36223935,116640.0,116630.0,0.00208001]
[1754681230200,1.49419935,116640.0,116630.0,0.00208001]
[1754681230413,1.49732935,116640.0,116630.0,0.00208001]
[1754681231026,1.36536935,116640.0,116630.0,0.00208001]
[1754681231206,1.49736935,116640.0,116630.0,0.00208001]
[1754681231584,1.36536935,116640.0,116630.0,0.00208001]
[1754681231792,1.49732935,116640.0,116630.0,0.00208001]
[1754681232167,1.49768935,116640.0,116630.0,0.00208001]
[1754681232374,1.36739935,116640.0,116630.0,0.00208001]
[1754681232788,1.49967935,116640.0,116630.0,0.00208001]
[1754681233509,1.499686,116640.0,116630.0,0.00208001]
[1754681234310,1.367406,116640.0,116630.0,0.00208001]
[1754681234527,1.499686,116640.0,116630.0,0.00208001]
[1754681234727,1.499686,116640.0,116630.0,1e-08]
[1754681234933,1.52716218,116640.0,116630.0,1e-08]
[1754681235781,1.52724218,116640.0,116630.0,1e-08]
[1754681236006,1.499766,116640.0,116630.0,1e-08]
[1754681237049,1.499726,116640.0,116630.0,1e-08]
[1754681244890,0.27380273,116640.0,116630.0,0.17584247]
[1754681245142,0.26232987,116640.0,116630.0,0.02878001]
[1754681245360,0.39484987,116640.0,116630.0,0.02642001]
[1754681245563,0.39484987,116640.0,116630.0,0.00200001]
[1754681246550,0.39797987,116640.0,116630.0,0.00200001]
[1754681246756,0.41542889,116640.0,116630.0,0.00200001]
[1754681247074,0.47411709,116640.0,116630.0,0.00200001]
[1754681248750,0.47411709,116640.0,116630.0,1e-08]
[1754681248751,0.47619709,116640.0,116630.0,1e-08]
[1754681248989,0.34367709,116640.0,116630.0,1e-08]
[1754681249240,0.34367709,116640.0,116630.0,0.57136588]
[1754681249241,0.09086211,116640.0,116630.0,0.57136588]
[1754681249461,0.27906137,116660.0,116650.0,0.17145306]
[1754681249462,0.08185459,116660.0,116650.0,0.17145306]
[1754681249674,0.08185459,116660.0,116650.0,0.56755647]
[1754681250110,0.13248,116670.0,116660.0,0.17143836]
[1754681250579,0.13248,116670.0,116660.0,0.54254177]
[1754681251429,0.13248,116670.0,116660.0,0.54454177]
[1754681251615,0.13348,116670.0,116660.0,0.54454177]
[1754681252282,0.13348,116670.0,116660.0,0.17343836]
[1754681252492,0.13348,116670.0,116660.0,0.57329677]
[1754681253201,0.30490367,116670.0,116660.0,0.20219336]
[1754681253411,0.39489578,116670.0,116660.0,0.20219336]
[1754681253625,0.46055403,116670.0,116660.0,0.030755]
[1754681254039,0.46055403,116670.0,116660.0,0.005]
[1754681254260,0.39697578,116670.0,116660.0,0.005]
[1754681256200,0.26241578,116670.0,116660.0,0.17643836]
[1754681256401,0.39188578,116670.0,116660.0,0.005]
[1754681257536,0.39501578,116670.0,116660.0,0.005]
[1754681257764,0.39709578,116670.0,116660.0,0.005]
[1754681259489,0.39709578,116670.0,116660.0,0.030757]
[1754681261157,0.45394627,116670.0,116660.0,0.030757]
[1754681261769,0.39709578,116670.0,116660.0,0.030757]
[1754681262151,0.39709578,116670.0,116660.0,0.005]
[1754681267232,0.39501578,116670.0,116660.0,0.005]
[1754681268088,0.39709578,116670.0,116660.0,0.005]
[1754681271549,0.40509801,116670.0,116660.0,0.005]
[1754681271758,0.48019774,116670.0,116660.0,0.005]
[1754681271953,0.50499774,116670.0,116660.0,0.005]
[1754681272781,0.50399774,116670.0,116660.0,0.003]
[1754681272990,0.44734703,116670.0,116660.0,0.003]
[1754681273406,0.44734703,116670.0,116660.0,0.00056]
[1754681273606,0.17145306,116650.0,116640.0,0.18004041]
[1754681273805,0.30409306,116650.0,116640.0,0.18004041]
[1754681275150,0.30409306,116650.0,116640.0,0.18304041]
[1754681275400,0.30509306,116650.0,116640.0,0.18504041]
[1754681279209,0.30819306,116650.0,116640.0,0.18504041]
[1754681280260,0.30819306,116650.0,116640.0,0.17646776]
[1754681280476,0.31025306,116650.0,116640.0,0.17646776]
[1754681283332,0.31829196,116650.0,116640.0,0.005]
[1754681283719,0.40515407,116650.0,116640.0,0.005]
[1754681284337,0.40515407,116650.0,116640.0,0.002]
[1754681284542,0.40515407,116650.0,116640.0,0.003]
[1754681284753,0.40415407,116650.0,116640.0,0.001]
[1754681285163,0.40515407,116650.0,116640.0,0.003]
[1754681291218,0.39711517,116650.0,116640.0,0.003]
[1754681291647,0.25931517,116650.0,116640.0,0.003]
[1754681291853,0.25931517,116650.0,116640.0,0.54557117]
[1754681291854,0.30485306,116650.0,116640.0,0.54557117]
[1754681292914,0.31001306,116650.0,116640.0,0.17446776]
[1754681293102,0.31001306,116650.0,116640.0,0.003]
[1754681293517,0.31001306,116650.0,116640.0,0.17446776]
[1754681294669,0.31001306,116650.0,116640.0,0.003]
[1754681295388,0.31001306,116650.0,116640.0,0.17446776]
[1754681296795,0.31001306,116650.0,116640.0,0.003]
[1754681297419,0.30795306,116650.0,116640.0,0.17446776]
[1754681297639,0.30485306,116650.0,116640.0,0.17446776]
[1754681299178,0.30795306,116650.0,116640.0,0.17446776]
[1754681299386,0.30795306,116650.0,116640.0,0.003]
[1754681299601,0.31001306,116650.0,116640.0,0.003]
[1754681299806,0.17761306,116650.0,116640.0,0.003]
[1754681300017,0.30981306,116650.0,116640.0,0.003]
[1754681300667,0.30981306,116650.0,116640.0,0.17446776]
[1754681300885,0.30981306,116650.0,116640.0,0.003]
[1754681302368,0.30981306,116650.0,116640.0,0.17446776]
[1754681303863,0.30981306,116650.0,116640.0,0.003]
[1754681307590,0.30981306,116650.0,116640.0,0.17446776]
[1754681307804,0.30981306,116650.0,116640.0,0.003]
[1754681309426,0.39667517,116650.0,116640.0,0.003]
[1754681340337,0.49534687,116650.0,116640.0,0.003]
[1754681340798,0.52123506,116650.0,116640.0,0.003]
[1754681341224,0.52123506,116650.0,116640.0,0.0006]
[1754681344256,0.49534687,116650.0,116640.0,0.0006]
[1754681346343,0.52489019,116650.0,116640.0,0.0006]
[1754681352332,0.49534687,116650.0,116640.0,0.0006]
[1754681356038,0.83534687,116650.0,116640.0,0.0006]
[1754681365346,0.84338134,116650.0,116640.0,0.0006]
[1754681368172,0.84406134,116650.0,116640.0,0.0006]
[1754681368806,0.71118134,116650.0,116640.0,0.0006]
[1754681369216,0.84406134,116650.0,116640.0,0.0006]
[1754681370783,0.84749734,116650.0,116640.0,0.0006]
[1754681371860,0.84750427,116650.0,116640.0,0.0006]
[1754681373512,0.87704759,116650.0,116640.0,0.0006]
[1754681374626,0.51146776,116640.0,116630.0,1e-08]
[1754681374831,0.81979412,116640.0,116630.0,1e-08]
[1754681375034,0.82291412,116640.0,116630.0,1e-08]
[1754681376684,0.82391412,116640.0,116630.0,0.00100001]
[1754681377266,0.82491412,116640.0,116630.0,0.00100001]
[1754681381601,0.84236314,116640.0,116630.0,0.00100001]
[1754681400302,0.85040909,116640.0,116630.0,0.00100001]
[1754681400512,0.84172314,116640.0,116630.0,0.00100001]
[1754681401143,0.70933792,116640.0,116630.0,0.00100001]
[1754681401349,0.75255367,116640.0,116630.0,0.00100001]
[1754681402326,0.75471367,116640.0,116630.0,0.00100001]
[1754681406427,0.17149717,116620.0,116610.0,0.0075756]
[1754681406635,0.39107928,116620.0,116610.0,0.00804991]
[1754681407895,0.39207928,116620.0,116610.0,0.00904991]
[1754681408108,0.39207928,116620.0,116610.0,0.18056178]
[1754681408905,0.39207928,116620.0,116610.0,0.18256178]
[1754681414946,0.25935928,116620.0,116610.0,0.18256178]
[1754681415155,0.39195928,116620.0,116610.0,0.18256178]
[1754681418156,0.40670195,116620.0,116610.0,0.00347431]
[1754681418639,0.40670195,116620.0,116610.0,0.17498618]
[1754681419060,0.40670195,116620.0,116610.0,0.00347431]
[1754681420090,0.40670195,116620.0,116610.0,0.17498618]
[1754681420302,0.40670195,116620.0,116610.0,0.00347431]
[1754681427847,0.42415097,116620.0,116610.0,0.00347431]
[1754681428066,0.44752097,116620.0,116610.0,0.00347431]
[1754681428723,0.44652097,116620.0,116610.0,0.00247431]
[1754681428939,0.44652097,116620.0,116610.0,0.00047431]
[1754681429367,0.44752097,116620.0,116610.0,0.00047431]
[1754681430409,0.44852097,116620.0,116610.0,0.00047431]
[1754681430626,0.78852097,116620.0,116610.0,0.00047431]
[1754681432249,0.79195697,116620.0,116610.0,0.00047431]
[1754681447896,0.79143697,116620.0,116610.0,0.00047431]
[1754681448301,0.7585343,116620.0,116610.0,0.00047431]
[1754681448457,0.7550983,116620.0,116610.0,0.00047431]
[1754681455428,0.7585343,116620.0,116610.0,0.00047431]
[1754681473241,0.01744902,116600.0,116590.0,0.18043251]
[1754681473454,0.23635113,116600.0,116590.0,0.18055398]
[1754681473679,0.40787771,116600.0,116590.0,0.17197692]
[1754681473886,0.23635113,116600.0,116590.0,0.17197692]
[1754681474475,0.40887771,116600.0,116590.0,0.17197692]
[1754681475080,0.40887771,116600.0,116590.0,0.17397692]
[1754681475301,0.23735113,116600.0,116590.0,0.17397692]
[1754681475684,0.40887771,116600.0,116590.0,0.17397692]
[1754681476300,0.46723467,116600.0,116590.0,0.17397692]
[1754681480611,0.47041467,116600.0,116590.0,0.17397692]
[1754681487365,0.47237467,116600.0,116590.0,0.17397692]
[1754681489256,0.30084809,116600.0,116590.0,0.17397692]
[1754681490101,0.47237467,116600.0,116590.0,0.17397692]
[1754681491756,0.47237467,116600.0,116590.0,0.00243578]
[1754681492782,0.47137467,116600.0,116590.0,0.00243578]
[1754681492983,0.47237467,116600.0,116590.0,0.00043578]
[1754681494242,0.47337467,116600.0,116590.0,0.00043578]
[1754681496386,0.47337467,116600.0,116590.0,0.17197707]
[1754681496587,0.47337467,116600.0,116590.0,0.00043578]
[1754681498554,0.47337467,116600.0,116590.0,0.17197707]
[1754681498758,0.47337467,116600.0,116590.0,0.00043578]
[1754681519729,0.49915067,116600.0,116590.0,0.00043578]
[1754681520350,0.83915067,116600.0,116590.0,0.00043578]
[1754681520556,0.86216067,116600.0,116590.0,0.00043578]
[1754681536388,0.83915067,116600.0,116590.0,0.00043578]
[1754681542828,0.70711067,116600.0,116590.0,0.00043578]
[1754681543075,0.83711067,116600.0,116590.0,0.00043578]
[1754681543655,0.83911067,116600.0,116590.0,0.00043578]
[1754681545661,0.17154129,116590.0,116580.0,0.16839134]
[1754681545874,0.3903634,116590.0,116580.0,0.16839134]
[1754681547118,0.47715765,116590.0,116580.0,0.16839134]
[1754681548109,0.47815765,116590.0,116580.0,0.16839134]
[1754681550274,0.48339765,116590.0,116570.0,0.19774411]
[1754681550521,0.30351601,116580.0,116570.0,0.19774411]
[1754681550918,0.13196,116580.0,116570.0,0.17196911]
[1754681551113,0.18009977,116580.0,116570.0,0.19774411]
[1754681552826,0.18109977,116580.0,116570.0,0.19974411]
[1754681555487,0.13296,116580.0,116570.0,0.5708786]
[1754681557561,0.13296,116580.0,116570.0,0.19974411]
[1754681561736,0.1362,116580.0,116570.0,0.19974411]
[1754681565567,0.1382,116580.0,116570.0,0.19974411]
[1754681565707,0.30975601,116580.0,116570.0,0.19974411]
[1754681566336,0.15469949,116580.0,116570.0,0.19974411]
[1754681568237,0.1382,116580.0,116570.0,0.19974411]
[1754681568557,0.00624,116580.0,116570.0,0.19974411]
[1754681568677,0.13816,116580.0,116570.0,0.19974411]
[1754681569088,0.30971601,116580.0,116570.0,0.19974411]
[1754681569289,0.13816,116580.0,116570.0,0.19974411]
[1754681569498,0.14756639,116580.0,116570.0,0.19974411]
[1754681570749,0.13816,116580.0,116570.0,0.19974411]
[1754681573865,0.39657812,116580.0,116570.0,0.19974411]
[1754681574618,0.22502211,116580.0,116570.0,0.19974411]
[1754681575036,0.39657812,116580.0,116570.0,0.19974411]
[1754681575281,0.22502211,116580.0,116570.0,0.19974411]
[1754681577343,0.21978211,116580.0,116570.0,0.5708786]
[1754681577552,0.21978211,116580.0,116570.0,0.19974411]
[1754681578921,0.22301211,116580.0,116570.0,0.19974411]
[1754681580321,0.43599346,116580.0,116570.0,0.19974411]
[1754681580460,0.26439745,116580.0,116570.0,0.19974411]
[1754681581101,0.26439745,116580.0,116570.0,0.17396911]
[1754681585022,0.22494211,116580.0,116570.0,0.17396911]
[1754681588291,0.22494211,116580.0,116570.0,0.19974511]
[1754681588868,0.22494211,116580.0,116570.0,0.17396911]
[1754681589076,0.22494211,116580.0,116570.0,0.19974411]
[1754681589299,0.22494211,116580.0,116570.0,0.17396911]
[1754681589616,0.22494211,116580.0,116570.0,0.19974411]
[1754681589772,0.22494211,116580.0,116570.0,0.17396911]
[1754681589981,0.26459045,116580.0,116570.0,0.17396911]
[1754681590997,0.43614646,116580.0,116570.0,0.17396911]
[1754681591403,0.26459045,116580.0,116570.0,0.17396911]
[1754681591801,0.43614646,116580.0,116570.0,0.17396911]
[1754681594042,0.43614646,116580.0,116570.0,0.0024]
[1754681594929,0.43614646,116580.0,116570.0,0.17397073]
[1754681595727,0.43614646,116580.0,116570.0,0.0024]
[1754681596076,0.43614646,116580.0,116570.0,0.17397073]
[1754681597374,0.43614646,116580.0,116570.0,0.0024]
[1754681597595,0.43614646,116580.0,116570.0,0.17397073]
[1754681599753,0.45359548,116580.0,116570.0,0.0024]
[1754681600080,0.45359548,116580.0,116570.0,0.17397073]
[1754681606337,0.45359548,116580.0,116570.0,0.0024]
[1754681607201,0.45259548,116580.0,116570.0,0.0024]
[1754681607381,0.45259548,116580.0,116570.0,0.17397073]
[1754681607542,0.45359548,116580.0,116570.0,0.17397073]
[1754681607736,0.45359548,116580.0,116570.0,0.0024]
[1754681607944,0.45359548,116580.0,116570.0,0.17397073]
[1754681608542,0.45359548,116580.0,116570.0,0.17197073]
[1754681618351,0.45359548,116580.0,116570.0,0.0004]
[1754681618551,0.45359548,116580.0,116570.0,0.17197073]
[1754681621383,0.32171548,116580.0,116570.0,0.17197073]
[1754681621645,0.08786211,116580.0,116570.0,0.17197073]
[1754681621886,0.08786211,116580.0,116570.0,0.54310522]
[1754681622126,0.001,116580.0,116570.0,0.54310522]
[1754681622375,0.001,116580.0,116570.0,0.69990522]
[1754681622615,0.001,116580.0,116570.0,1.07103971]
[1754681622835,0.001,116580.0,116570.0,0.69990522]
[1754681623067,0.001,116580.0,116570.0,0.72567722]
[1754681624269,0.001,116580.0,116570.0,0.72867722]
[1754681625113,0.1318,116590.0,116580.0,0.17155601]
[1754681625371,0.00014185,116600.0,116590.0,0.17154129]
[1754681625601,0.21880396,116600.0,116590.0,0.17154129]
[1754681625859,0.22176396,116600.0,116590.0,0.17154129]
[1754681626097,0.08996396,116600.0,116590.0,0.17154129]
[1754681626387,0.28255313,116600.0,116590.0,0.17154129]
[1754681627098,0.28355313,116600.0,116590.0,0.17254129]
[1754681627340,0.22276396,116600.0,116590.0,0.17254129]
[1754681628253,0.26249054,116600.0,116590.0,0.17254129]
[1754681628475,0.39429054,116600.0,116590.0,0.17254129]
[1754681629499,0.26249054,116600.0,116590.0,0.17254129]
[1754681629657,0.45911236,116600.0,116590.0,0.17254129]
[1754681629853,0.32735236,116600.0,116590.0,0.17254129]
[1754681630408,0.45911236,116600.0,116590.0,0.17254129]
[1754681630919,0.46117236,116600.0,116590.0,0.17254129]
[1754681631681,0.28964578,116600.0,116590.0,0.17254129]
[1754681633227,0.46117236,116600.0,116590.0,0.17254129]
[1754681638351,0.46117236,116600.0,116590.0,0.001]
[1754681638546,0.46117236,116600.0,116590.0,0.17254129]
[1754681642332,0.46117236,116600.0,116590.0,0.001]
[1754681642542,0.47862138,116600.0,116590.0,0.001]
[1754681642963,0.50224138,116600.0,116590.0,0.001]
[1754681648740,0.84224138,116600.0,116590.0,0.001]
[1754681649816,0.86801838,116600.0,116590.0,0.001]
[1754681661074,0.84439838,116600.0,116590.0,0.001]
[1754681663476,0.86908838,116600.0,116590.0,0.001]
[1754681663645,0.89596843,116600.0,116590.0,0.001]
[1754681664250,0.17155601,116580.0,116570.0,0.0004]
[1754681664472,0.42645919,116580.0,116570.0,0.0004]
[1754681664655,0.42939919,116580.0,116570.0,0.0004]
[1754681666278,0.44684821,116580.0,116570.0,0.0004]
[1754681666847,0.44784821,116580.0,116570.0,0.0004]
[1754681669449,0.44884821,116580.0,116570.0,0.0004]
[1754681669851,0.44784821,116580.0,116570.0,0.0004]
[1754681670339,0.44884821,116580.0,116570.0,0.0004]
[1754681677656,0.78884821,116580.0,116570.0,0.0004]
[1754681702056,0.81294821,116580.0,116570.0,0.0004]
[1754681702254,0.83832886,116580.0,116570.0,0.0004]
[1754681702498,0.84176686,116580.0,116570.0,0.0004]
[1754681702701,0.84980364,116580.0,116570.0,0.0004]
[1754681703073,0.84880364,116580.0,116570.0,0.0004]
[1754681703446,0.85180364,116580.0,116570.0,1e-08]
[1754681703726,0.85682766,116580.0,116570.0,1e-08]
[1754681703883,0.85982766,116580.0,116570.0,1e-08]
[1754681704358,0.85682766,116580.0,116570.0,1e-08]
[1754681704580,0.86082766,116580.0,116570.0,1e-08]
[1754681704782,0.85782766,116580.0,116570.0,1e-08]
[1754681705199,0.86182766,116580.0,116570.0,1e-08]
[1754681705409,0.85580364,116580.0,116570.0,1e-08]
[1754681709210,1.29400364,116580.0,116570.0,1e-08]
[1754681715439,1.29398336,116580.0,116570.0,1e-08]
[1754681716202,1.26860271,116580.0,116570.0,1e-08]
[1754681724022,1.29203188,116580.0,116570.0,1e-08]
[1754681724233,1.29203427,116580.0,116570.0,1e-08]
[1754681725277,1.29805026,116580.0,116570.0,1e-08]
[1754681726333,1.32783244,116580.0,116570.0,1e-08]
[1754681726550,0.88963244,116580.0,116570.0,1e-08]
[1754681727020,0.52901975,116570.0,116560.0,1e-08]
[1754681727238,0.87082949,116570.0,116560.0,1e-08]
[1754681728210,0.87382949,116570.0,116560.0,1e-08]
[1754681728383,1.07994949,116570.0,116560.0,1e-08]
[1754681729749,1.51914949,116570.0,116560.0,1e-08]
[1754681731466,1.54493649,116570.0,116560.0,1e-08]
[1754681732265,1.55096405,116570.0,116560.0,1e-08]
[1754681739659,1.52747956,116570.0,116560.0,1e-08]
[1754681741829,1.08927956,116570.0,116560.0,1e-08]
[1754681745406,0.95771956,116570.0,116560.0,1e-08]
[1754681745655,1.08927956,116570.0,116560.0,1e-08]
[1754681748489,1.08930271,116570.0,116560.0,1e-08]
[1754681751446,1.0893031,116570.0,116560.0,1e-08]
[1754681755529,1.17122701,116570.0,116560.0,1e-08]
[1754681757207,1.17122654,116570.0,116560.0,1e-08]
[1754681759914,1.17121701,116570.0,116560.0,1e-08]
[1754681760333,0.52903446,116560.0,116550.0,1e-08]
[1754681760542,0.89304151,116560.0,116550.0,1e-08]
[1754681760979,0.93735346,116560.0,116550.0,1e-08]
[1754681761413,0.94135346,116560.0,116550.0,1e-08]
[1754681761640,0.94149523,116560.0,116550.0,1e-08]
[1754681761847,0.94349523,116560.0,116550.0,1e-08]
[1754681763801,0.92001074,116560.0,116550.0,1e-08]
[1754681764226,0.94349523,116560.0,116550.0,1e-08]
[1754681765121,0.93746767,116560.0,116550.0,1e-08]
[1754681765320,0.94347195,116560.0,116550.0,1e-08]
[1754681766180,0.90146751,116560.0,116550.0,1e-08]
[1754681768168,0.90146497,116560.0,116550.0,1e-08]
[1754681768374,0.92494946,116560.0,116550.0,1e-08]
[1754681769996,0.92494893,116560.0,116550.0,1e-08]
[1754681771053,0.90146444,116560.0,116550.0,1e-08]
[1754681771345,0.90142575,116560.0,116550.0,1e-08]
[1754681772140,0.76777575,116560.0,116550.0,1e-08]
[1754681772345,0.89929575,116560.0,116550.0,1e-08]
[1754681772957,0.74866246,116560.0,116550.0,1e-08]
[1754681773223,0.85671721,116560.0,116550.0,1e-08]
[1754681773426,0.51671721,116560.0,116550.0,1e-08]
[1754681773617,0.85671721,116560.0,116550.0,1e-08]
[1754681773834,0.87416623,116560.0,116550.0,1e-08]
[1754681774257,0.87416756,116560.0,116550.0,1e-08]
[1754681775452,0.74264756,116560.0,116550.0,1e-08]
[1754681775691,0.87416789,116560.0,116550.0,1e-08]
[1754681778933,0.87723789,116560.0,116550.0,1e-08]
[1754681779557,1.08339789,116560.0,116550.0,1e-08]
[1754681780347,1.08340089,116560.0,116550.0,1e-08]
[1754681781350,1.08033089,116560.0,116550.0,1e-08]
[1754681781552,0.94881089,116560.0,116550.0,1e-08]
[1754681781758,1.08033089,116560.0,116550.0,1e-08]
[1754681782547,1.08343089,116560.0,116550.0,1e-08]
[1754681785045,0.95191089,116560.0,116550.0,1e-08]
[1754681785264,1.08343089,116560.0,116550.0,1e-08]
[1754681790087,1.08558089,116560.0,116550.0,1e-08]
[1754681791545,0.95406089,116560.0,116550.0,1e-08]
[1754681791793,1.08554089,116560.0,116550.0,1e-08]
[1754681798538,1.08554894,116560.0,116550.0,1e-08]
[1754681799140,0.87938894,116560.0,116550.0,1e-08]
[1754681799927,0.65586469,116560.0,116550.0,1e-08]
[1754681800146,0.76155269,116560.0,116550.0,1e-08]
[1754681800552,0.63007269,116560.0,116550.0,1e-08]
[1754681800781,0.76155269,116560.0,116550.0,1e-08]
[1754681801414,0.76465269,116560.0,116550.0,1e-08]
[1754681801632,0.85144694,116560.0,116550.0,1e-08]
[1754681803848,0.76465269,116560.0,116550.0,1e-08]
[1754681804061,0.63317269,116560.0,116550.0,1e-08]
[1754681804275,0.76465269,116560.0,116550.0,1e-08]
[1754681804689,0.76465407,116560.0,116550.0,1e-08]
[1754681805239,0.76680407,116560.0,116550.0,1e-08]
[1754681805441,0.85359832,116560.0,116550.0,1e-08]
[1754681808108,0.72211832,116560.0,116550.0,1e-08]
[1754681808311,0.94572594,116560.0,116550.0,1e-08]
[1754681808524,0.97151294,116560.0,116550.0,1e-08]
[1754681813595,0.90203532,116560.0,116550.0,1e-08]
[1754681813819,0.90203276,116560.0,116550.0,1e-08]
[1754681827987,0.90203803,116560.0,116550.0,1e-08]
[1754681834205,0.90203945,116560.0,116550.0,1e-08]
[1754681834428,0.87934945,116560.0,116550.0,1e-08]
[1754681834986,0.74575945,116560.0,116550.0,1e-08]
[1754681835214,0.85343245,116560.0,116550.0,1e-08]
[1754681837476,0.87059645,116560.0,116550.0,1e-08]
[1754681838040,0.73915645,116560.0,116550.0,1e-08]
[1754681838244,0.7786822,116560.0,116550.0,1e-08]
[1754681838494,0.7615182,116560.0,116550.0,1e-08]
[1754681839050,0.7555182,116560.0,116550.0,1e-08]
[1754681839541,0.7575182,116560.0,116550.0,1e-08]
[1754681840625,0.26862918,116560.0,116550.0,0.17160018]
[1754681840826,0.40006918,116560.0,116550.0,1e-08]
[1754681841054,0.41807101,116560.0,116550.0,1e-08]
[1754681841627,0.41807101,116560.0,116550.0,0.54315275]
[1754681841628,0.26862918,116560.0,116550.0,0.54315275]
[1754681841838,0.40006918,116560.0,116550.0,0.54315275]
[1754681842034,0.39202932,116560.0,116550.0,0.54315275]
[1754681842453,0.39202932,116560.0,116550.0,0.17160018]
[1754681844128,0.39002932,116560.0,116550.0,0.17160018]
[1754681844328,0.39102932,116560.0,116550.0,0.17260018]
[1754681844529,0.39102932,116560.0,116550.0,0.17460018]
[1754681845079,0.47658475,116560.0,116550.0,0.17460018]
[1754681845294,0.39102932,116560.0,116550.0,0.20038218]
[1754681847774,0.21944388,116560.0,116550.0,0.20038218]
[1754681848120,0.39102932,116560.0,116550.0,0.20038218]
[1754681848360,0.21944388,116560.0,116550.0,0.20038218]
[1754681848564,0.39102932,116560.0,116550.0,0.20038218]
[1754681848915,0.39102932,116560.0,116550.0,0.02878201]
[1754681849315,0.39102932,116560.0,116550.0,0.20038218]
[1754681849520,0.39102932,116560.0,116550.0,0.02878201]
[1754681850974,0.42621324,116560.0,116550.0,0.02878201]
[1754681853752,0.39102932,116560.0,116550.0,0.20038218]
[1754681855646,0.39402932,116560.0,116550.0,0.20038218]
[1754681857170,0.25958932,116560.0,116550.0,0.72811536]
[1754681857382,0.08800388,116560.0,116550.0,0.72811536]
[1754681857797,0.00114177,116560.0,116550.0,0.72811536]
[1754681858200,0.00114177,116560.0,116550.0,0.35678218]
[1754681859228,0.00114177,116560.0,116550.0,0.72811536]
[1754681859429,0.17272721,116560.0,116550.0,0.35678218]
[1754681860053,0.17272721,116560.0,116550.0,0.18518201]
[1754681860290,0.44397911,116560.0,116550.0,0.05378201]
[1754681860544,0.44397911,116560.0,116550.0,0.02878201]
[1754681860945,0.44397911,116560.0,116550.0,0.00300001]
[1754681876381,0.46719911,116560.0,116550.0,0.00300001]
[1754681876607,0.47523008,116560.0,116550.0,0.00300001]
[1754681879952,0.47522944,116560.0,116550.0,0.00300001]
[1754681880302,0.49267846,116560.0,116550.0,0.00300001]
[1754681880508,0.83267846,116560.0,116550.0,0.00300001]
[1754681882888,0.85767846,116560.0,116550.0,0.00300001]
[1754681891243,0.85767373,116560.0,116550.0,0.00300001]
[1754681893199,0.85667373,116560.0,116550.0,0.00200001]
[1754681893378,0.85967373,116560.0,116550.0,1e-08]
[1754681893706,0.86067373,116560.0,116550.0,1e-08]
[1754681896142,0.86067042,116560.0,116550.0,1e-08]